[Event "German Bundesliga 2024-25"]
[Site "Germany"]
[Date "2024.11.30"]
[Round "3.7"]
[White "Jovanovic, Zoran"]
[Black "Miljkovic, Miroslav D"]
[Result "1/2-1/2"]
[Annotator "TA"]
[ECO "C77"]
[WhiteElo "2520"]
[BlackElo "2422"]
[PlyCount "40"]
[EventDate "2024.09.27"]
[EventType "team-tourn"]
[EventCountry "GER"]
[SourceTitle "playchess.com"]
[Source "ChessBase"]
[SourceQuality "1"]
[WhiteTeam "Kirchweyhe"]
[BlackTeam "Deggendorf"]
[TimeControl "40/5400+30:1800+30"]

{[%evp 11,40,22,13,19,46,29,27,13,20,0,2,-17,2,-11,-9,-11,-16,-16,-26,-22,0,-28,-22,-27,-13,-24,-16,-22,0,-30,-37]} 1. e4 {[%emt 0:00:02]} e5 {[%emt 0:00:08]} 2. Nf3 {[%emt 0:00:28]} Nc6 {[%emt 0:00:07]} 3. Bb5 {[%emt 0:03:31]} a6 {[%emt 0:00:36]} 4. Ba4 {[%emt 0:00:06]} Nf6 {[%emt 0:00:27]} 5. Nc3 {[%emt 0:01:33]} d6 {[%emt 0:01:03]} 6. Bxc6+ {[%emt 0:04:35]} bxc6 {[%emt 0:00:38]} 7. d4 {[%emt 0:00:02]} Nd7 {[%emt 0:00:23]} 8. b3 {[%emt 0:01:12]} Be7 {[%emt 0:04:30]} 9. Bb2 {[%emt 0:02:41] White has an edge.} O-O {[%emt 0:12:08]} 10. dxe5 {[%emt 0:10:39]} dxe5 {[%emt 0:00:20]} 11. Na4 {[%emt 0:08:16]} Bd6 {[%emt 0:24:42]} 12. Qe2 {[%emt 0:08:53]} Qe7 {[%emt 0:01:31]} 13. c4 {[%emt 0:03:44]} Bb4+ {[%emt 0:13:13]} 14. Bc3 {[%emt 0:08:17]} Bxc3+ {[%emt 0:08:18]} 15. Nxc3 {[%emt 0:00:12]} Nc5 {[%emt 0:00:03]} 16. O-O {[%emt 0:04:06]} Bg4 {[%emt 0:00:39]} 17. h3 {[%emt 0:00:13]} Bxf3 {[%emt 0:00:41]} 18. Qxf3 {[%emt 0:00:04]} Rad8 {[%emt 0:04:26]} 19. Rad1 {[%emt 0:00:23] Wards off Rd3} Ne6 {[%emt 0:04:50]} 20. Rxd8 {[%emt 0:00:26]} Rxd8 {[%emt 0:02:22] Weighted Error Value: White=0.12 (very precise) /Black=0.07 (flawless) .  Inaccurate:     	White=2     	Black=1      OK:         	White=2     	Black=5} 1/2-1/2

[Event "German Bundesliga 2024-25"]
[Site "Germany"]
[Date "2024.11.30"]
[Round "3.7"]
[White "Babula, Vlastimil"]
[Black "Winterberg, Lukas"]
[Result "1/2-1/2"]
[Annotator "TA"]
[ECO "D27"]
[WhiteElo "2496"]
[BlackElo "2410"]
[PlyCount "49"]
[EventDate "2024.09.27"]
[EventType "team-tourn"]
[EventCountry "GER"]
[SourceTitle "playchess.com"]
[Source "ChessBase"]
[SourceQuality "1"]
[WhiteTeam "Werder Bremen"]
[BlackTeam "Heimbach-Weis-Neuwied"]
[TimeControl "40/5400+30:1800+30"]

{[%evp 23,49,0,0,0,0,0,0,-24,-14,-8,-16,-13,-8,-20,0,-14,-20,-13,-14,-22,0,0,0,0,0,0,0,0]} 1. d4 {[%emt 0:00:06]} d5 {[%emt 0:00:15]} 2. c4 {[%emt 0:00:13]} dxc4 {[%emt 0:00:13]} 3. e3 {[%emt 0:00:45]} Nf6 {[%emt 0:00:12]} 4. Bxc4 {[%emt 0:00:18]} e6 {[%emt 0:00:12]} 5. Nf3 {[%emt 0:00:43]} c5 {[%emt 0:00:16]} 6. O-O {[%emt 0:00:47]} Nc6 {[%emt 0:00:09]} 7. Qe2 {[%emt 0:02:43]} a6 {[%emt 0:00:42]} 8. a4 {[%emt 0:02:45]} cxd4 {[%emt 0:00:34]} 9. Rd1 {[%emt 0:00:31]} Be7 {[%emt 0:00:15]} 10. exd4 {[%emt 0:00:50]} O-O {[%emt 0:00:18]} 11. Nc3 {[%emt 0:00:32]} Nb4 {[%emt 0:01:34]} 12. Ne5 {[%emt 0:04:56]} Bd7 {[%emt 0:00:29]} 13. h4 {[%emt 0:10:56] [#] aiming for d5.} Bc6 {[%emt 0:05:06]} 14. Nxc6 {[%emt 0:00:36]} bxc6 {[%emt 0:00:18]} 15. h5 {[%emt 0:02:46]} h6 {[%emt 0:07:14]} 16. Bf4 {[%emt 0:06:11] The position is equal.} Bd6 {[%emt 0:37:43]} 17. Be5 {[%emt 0:01:42]} a5 {[%emt 0:00:15]} 18. Rac1 {[%emt 0:03:40]} Rb8 {[%emt 0:05:13]} 19. g3 {[%emt 0:15:01]} Qe7 {[%emt 0:01:58]} 20. Bxf6 {[%emt 0:08:11]} gxf6 {[%emt 0:04:22]} 21. Ne4 {[%emt 0:08:27]} f5 {[%emt 0:01:57]} 22. Nxd6 {[%emt 0:00:33]} Qxd6 {[%emt 0:00:02]} 23. Qe5 {[%emt 0:00:56]} Qxe5 {[%emt 0:07:44]} 24. dxe5 {[%emt 0:00:04]} Rfd8 {[%emt 0:00:52]} 25. Kf1 {[%emt 0:08:25] An uneventful encounter.   Weighted Error Value: White=0.04 (flawless) /Black=0.04 (flawless) .  OK:         	White=7     	Black=4} 1/2-1/2

[Event "German Bundesliga 2024-25"]
[Site "Germany"]
[Date "2024.11.30"]
[Round "3.7"]
[White "Zwirs, Nico"]
[Black "Esipenko, Andrey"]
[Result "1/2-1/2"]
[Annotator "TA"]
[ECO "C55"]
[WhiteElo "2480"]
[BlackElo "2682"]
[PlyCount "77"]
[EventDate "2024.09.27"]
[EventType "team-tourn"]
[EventCountry "GER"]
[SourceTitle "playchess.com"]
[Source "ChessBase"]
[SourceQuality "1"]
[WhiteTeam "Hamburg"]
[BlackTeam "Duesseldorf"]
[TimeControl "40/5400+30:1800+30"]

{[%evp 14,77,31,35,34,22,18,19,25,16,16,17,26,14,30,3,10,4,10,0,15,-4,-10,-20,-20,-23,44,-40,-13,-15,-18,-41,-58,-59,-48,-41,-25,-53,-45,-67,-33,-48,58,0,54,66,64,25,45,22,7,15,40,0,0,0,0,0,0,0,0,0,0,0,0,0]} 1. e4 {[%emt 0:00:01]} e5 {[%emt 0:00:18]} 2. Nf3 {[%emt 0:00:07]} Nc6 {[%emt 0:00:07]} 3. Bc4 {[%emt 0:00:09]} Nf6 {[%emt 0:00:09]} 4. d3 {[%emt 0:00:07]} Be7 {[%emt 0:00:06]} 5. O-O {[%emt 0:01:27]} O-O {[%emt 0:00:15]} 6. Re1 {[%emt 0:00:25]} d6 {[%emt 0:00:53]} 7. a4 {[%emt 0:00:12]} Be6 {[%emt 0:01:04]} 8. Nbd2 {[%emt 0:02:19]} h6 {[%emt 0:07:49]} 9. h3 {[%emt 0:00:33]} Bxc4 {[%emt 0:02:03]} 10. Nxc4 {[%emt 0:00:28]} Re8 {[%emt 0:00:12]} 11. c3 {[%emt 0:03:31]} Bf8 {[%emt 0:02:22]} 12. Qb3 {[%emt 0:01:47]} Rb8 {[%emt 0:02:08]} 13. Ne3 {[%emt 0:01:04]} Qd7 {[%emt 0:07:37]} 14. a5 {[%emt 0:06:11]} Ne7 {[%emt 0:03:51]} 15. c4 {[%emt 0:08:21]} Ng6 {[%emt 0:13:12]} 16. Nd5 {[%emt 0:11:39]} Nh5 {[%emt 0:00:10]} 17. Be3 {[%emt 0:01:49]} c6 {[%emt 0:02:36]} 18. Nc3 {[%emt 0:04:42]} Nhf4 {[%emt 0:00:20]} 19. Qd1 {[%emt 0:13:29][%cal Og1h2]} f5 {[%emt 0:07:31]} (19... Nxh3+ $11 20. gxh3 Qxh3) 20. Ne2 {[%emt 0:11:32] [#]} ({White should play} 20. Bxa7 $14 fxe4 21. Rxe4 (21. dxe4 $2 Nxg2 22. Rf1 Ra8 $19)) 20... Nxh3+ $1 {[%emt 0:08:30]} 21. gxh3 {[%emt 0:02:21] Kh2 is the strong threat.} f4 $1 {[%emt 0:00:12]} 22. Kh2 {[%emt 0:05:16]} fxe3 {[%emt 0:00:06]} 23. fxe3 {[%emt 0:00:10]} b5 {[%emt 0:00:07] Strongly threatening ...bxc4.} 24. axb6 {[%emt 0:02:58]} Rxb6 {[%emt 0:00:10]} 25. b3 {[%emt 0:01:38]} d5 {[%emt 0:04:58] Threatens to win with ...dxe4.} 26. Rg1 {[%emt 0:07:00]} Qf7 {[%emt 0:12:01]} 27. Ng3 {[%emt 0:00:40]} Rd8 {[%emt 0:02:28]} (27... d4 $1 $15) 28. Ra2 {[%emt 0:04:35]} (28. c5 $1 $14 Rb7 (28... Bxc5 $2 {loses.} 29. Nf5 $16) 29. Nf5) 28... dxc4 {[%emt 0:13:43]} (28... d4 $11) 29. bxc4 $14 {[%emt 0:00:25]} Rdb8 {[%emt 0:00:10][%cal Ob6b1]} 30. Nf5 {[%emt 0:05:08][%cal Of3e5] [#] Hoping for Nxe5!} Rb2+ {[%emt 0:00:19]} 31. Rxb2 {[%emt 0:00:04]} Rxb2+ {[%emt 0:00:06]} 32. Kh1 {[%emt 0:00:03]} Kh7 {[%emt 0:06:34]} 33. Ng5+ {[%emt 0:03:20]} hxg5 {[%emt 0:00:06] The position is equal.} 34. Qh5+ {[%emt 0:00:00]} Kg8 {[%emt 0:00:00]} 35. Rxg5 {[%emt 0:01:04]} Rb1+ $1 {[%emt 0:00:21]} ({Don't blunder} 35... Be7 $2 36. Rxg6 Rb1+ 37. Kg2 $18) 36. Kh2 {[%emt 0:00:14]} Rb2+ {[%emt 0:00:08]} 37. Kh1 {[%emt 0:00:35] Chess con chili.} Rb1+ $1 {[%emt 0:00:45]} ({Not} 37... Be7 $2 38. Rxg6 Rb1+ 39. Kg2 $18) 38. Kh2 {[%emt 0:00:14]} Rb2+ {[%emt 0:00:22]} 39. Kh1 {[%emt 0:03:10] Weighted Error Value: White=0.15 (very precise) /Black=0.15 (very precise) .  Mistake:       	White=2     	Black=3      Inaccurate:     	White=4     	Black=2      OK:         	White=5     	Black=9      Best:        	White=1     	Black=6      Strong:       	---       	Black=3} 1/2-1/2

[Event "German Bundesliga 2024-25"]
[Site "Germany"]
[Date "2024.11.30"]
[Round "3.7"]
[White "Loxine, Jakov"]
[Black "Dautov, Rustem"]
[Result "1/2-1/2"]
[Annotator "ChessBase"]
[ECO "A13"]
[WhiteElo "2395"]
[BlackElo "2568"]
[PlyCount "40"]
[EventDate "2024.09.27"]
[EventType "team-tourn"]
[EventCountry "GER"]
[SourceTitle "playchess.com"]
[Source "ChessBase"]
[SourceQuality "1"]
[WhiteTeam "TU Dresden"]
[BlackTeam "Deizisau"]
[TimeControl "40/5400+30:1800+30"]

1. c4 {[%emt 0:00:02]} e6 {[%emt 0:00:33]} 2. Nf3 {[%emt 0:00:42]} Nf6 {[%emt 0:00:31]} 3. g3 {[%emt 0:02:49]} d5 {[%emt 0:01:33]} 4. Bg2 {[%emt 0:00:07]} dxc4 {[%emt 0:01:39]} 5. Qa4+ {[%emt 0:00:27]} Bd7 {[%emt 0:02:20]} 6. Qxc4 {[%emt 0:00:08]} c5 {[%emt 0:00:04]} 7. Ne5 {[%emt 0:06:57]} Qc8 {[%emt 0:00:24]} 8. Nxd7 {[%emt 0:04:37]} Qxd7 {[%emt 0:01:37]} 9. O-O {[%emt 0:00:05]} Nc6 {[%emt 0:00:21]} 10. Qa4 {[%emt 0:03:05]} Rc8 {[%emt 0:12:55]} 11. d3 {[%emt 0:00:14]} b6 {[%emt 0:06:52]} 12. Nc3 {[%emt 0:10:04]} Be7 {[%emt 0:01:58]} 13. Bd2 {[%emt 0:00:44]} O-O {[%emt 0:00:38]} 14. Rfd1 {[%emt 0:22:52]} Rfd8 {[%emt 0:02:47]} 15. Be1 {[%emt 0:00:45]} Bf8 {[%emt 0:08:09]} 16. Rac1 {[%emt 0:10:47]} g6 {[%emt 0:02:50]} 17. e3 {[%emt 0:03:56]} Bg7 {[%emt 0:10:00]} 18. b3 {[%emt 0:00:35]} Ne7 {[%emt 0:21:35]} 19. a3 {[%emt 0:13:18]} Qxa4 {[%emt 0:09:56]} 20. Nxa4 {[%emt 0:00:26]} Nfd5 {[%emt 0:01:08]} 1/2-1/2

[Event "German Bundesliga 2024-25"]
[Site "Germany"]
[Date "2024.11.30"]
[Round "3.8"]
[White "Bologan, Victor"]
[Black "Heinemann, Thies"]
[Result "1-0"]
[Annotator "ChessBase"]
[ECO "B90"]
[WhiteElo "2600"]
[BlackElo "2417"]
[PlyCount "83"]
[EventDate "2024.09.27"]
[EventType "team-tourn"]
[EventCountry "GER"]
[SourceTitle "playchess.com"]
[Source "ChessBase"]
[SourceQuality "1"]
[WhiteTeam "Duesseldorf"]
[BlackTeam "Hamburg"]
[TimeControl "40/5400+30:1800+30"]

1. e4 {[%emt 0:00:03]} c5 {[%emt 0:00:05]} 2. Nf3 {[%emt 0:00:04]} d6 {[%emt 0:00:04]} 3. d4 {[%emt 0:00:04]} cxd4 {[%emt 0:00:04]} 4. Nxd4 {[%emt 0:00:05]} Nf6 {[%emt 0:00:05]} 5. Nc3 {[%emt 0:00:04]} a6 {[%emt 0:00:05]} 6. Be3 {[%emt 0:00:11]} Ng4 {[%emt 0:00:15]} 7. Bg5 {[%emt 0:01:07]} h6 {[%emt 0:00:17]} 8. Bc1 {[%emt 0:00:06]} Nf6 {[%emt 0:01:20]} 9. Bd3 {[%emt 0:00:36]} e5 {[%emt 0:02:20]} 10. Nde2 {[%emt 0:00:28]} Be7 {[%emt 0:01:26]} 11. O-O {[%emt 0:00:19]} b5 {[%emt 0:05:44]} 12. a4 {[%emt 0:20:56]} b4 {[%emt 0:06:41]} 13. Nd5 {[%emt 0:01:43]} Nxd5 {[%emt 0:07:18]} 14. exd5 {[%emt 0:00:32]} Nd7 {[%emt 0:01:31]} 15. a5 {[%emt 0:04:57]} Rb8 {[%emt 0:12:29]} 16. Ng3 {[%emt 0:04:51]} Nc5 {[%emt 0:05:16]} 17. Bc4 {[%emt 0:01:11]} Bg5 {[%emt 0:03:29]} 18. f4 {[%emt 0:02:41]} Bxf4 {[%emt 0:12:44]} 19. Bxf4 {[%emt 0:03:38]} exf4 {[%emt 0:00:17]} 20. Qe1+ {[%emt 0:02:05]} Qe7 {[%emt 0:16:46]} 21. Rxf4 {[%emt 0:04:41]} Qe5 {[%emt 0:01:40]} 22. Bf1 {[%emt 0:02:16]} f6 {[%emt 0:11:43]} 23. Rxb4 {[%emt 0:02:21]} Rxb4 {[%emt 0:00:29]} 24. Qxb4 {[%emt 0:00:08]} Qxd5 {[%emt 0:03:02]} 25. Re1+ {[%emt 0:07:42]} Kd8 {[%emt 0:00:28]} 26. Be2 {[%emt 0:04:07]} Nd7 {[%emt 0:03:17]} 27. Ne4 {[%emt 0:01:24]} Bb7 {[%emt 0:01:07]} 28. Bf3 {[%emt 0:05:15]} Re8 {[%emt 0:00:46]} 29. Kf2 {[%emt 0:06:51]} Qc6 {[%emt 0:00:40]} 30. Nxd6 {[%emt 0:00:38]} Qxc2+ {[%emt 0:00:17]} 31. Kg3 {[%emt 0:00:07]} Rxe1 {[%emt 0:02:36]} 32. Nxb7+ {[%emt 0:00:08]} Kc7 {[%emt 0:00:43]} 33. Qxe1 {[%emt 0:00:05]} Ne5 {[%emt 0:00:28]} 34. Be4 {[%emt 0:05:03]} Qxb2 {[%emt 0:01:02]} 35. Qd1 {[%emt 0:06:41]} Qa3+ {[%emt 0:00:54]} 36. Kf2 {[%emt 0:01:07]} Qe7 {[%emt 0:00:03]} 37. Qd4 {[%emt 0:02:05]} Nd7 {[%emt 0:00:46]} 38. Bf5 {[%emt 0:00:43]} Kxb7 {[%emt 0:00:33]} 39. Qxd7+ {[%emt 0:00:12]} Qxd7 {[%emt 0:00:05]} 40. Bxd7 {[%emt 0:00:04]} Kc7 {[%emt 0:00:08]} 41. Be8 {[%emt 0:31:25]} Kd6 {[%emt 0:30:07]} 42. Ke3 {[%emt 0:00:11]} 1-0

[Event "German Bundesliga 2024-25"]
[Site "Germany"]
[Date "2024.11.30"]
[Round "3.8"]
[White "Heimann, Andreas"]
[Black "Lutz, Ruben"]
[Result "1/2-1/2"]
[Annotator "ChessBase"]
[ECO "C11"]
[WhiteElo "2553"]
[BlackElo "2284"]
[PlyCount "79"]
[EventDate "2024.09.27"]
[EventType "team-tourn"]
[EventCountry "GER"]
[SourceTitle "playchess.com"]
[Source "ChessBase"]
[SourceQuality "1"]
[WhiteTeam "Deizisau"]
[BlackTeam "TU Dresden"]
[TimeControl "40/5400+30:1800+30"]

1. e4 {[%emt 0:00:03]} e6 {[%emt 0:00:04]} 2. d4 {[%emt 0:00:04]} d5 {[%emt 0:00:04]} 3. Nc3 {[%emt 0:00:24]} Nf6 {[%emt 0:00:05]} 4. e5 {[%emt 0:00:12]} Nfd7 {[%emt 0:00:06]} 5. f4 {[%emt 0:00:02]} c5 {[%emt 0:00:04]} 6. Nf3 {[%emt 0:00:03]} Nc6 {[%emt 0:00:06]} 7. Be3 {[%emt 0:00:14]} a6 {[%emt 0:00:08]} 8. Qd2 {[%emt 0:00:47]} b5 {[%emt 0:00:18]} 9. a3 {[%emt 0:00:26]} Qa5 {[%emt 0:00:11]} 10. dxc5 {[%emt 0:06:07]} Bxc5 {[%emt 0:00:05]} 11. Bxc5 {[%emt 0:00:03]} Nxc5 {[%emt 0:00:07]} 12. Ne2 {[%emt 0:01:15]} Qb6 {[%emt 0:00:21]} 13. Ned4 {[%emt 0:01:56]} Nxd4 {[%emt 0:01:05]} 14. Qxd4 {[%emt 0:02:01]} Bd7 {[%emt 0:02:24]} 15. Bd3 {[%emt 0:02:07]} a5 {[%emt 0:23:43]} 16. O-O {[%emt 0:06:34]} O-O {[%emt 0:10:25]} 17. b4 {[%emt 0:01:25]} Na4 {[%emt 0:00:28]} 18. Qxb6 {[%emt 0:00:05]} Nxb6 {[%emt 0:00:04]} 19. Nd4 {[%emt 0:00:05]} Rfc8 {[%emt 0:09:07]} 20. Nb3 {[%emt 0:00:23]} axb4 {[%emt 0:08:44]} 21. axb4 {[%emt 0:00:22]} Ra4 {[%emt 0:00:09]} 22. Rxa4 {[%emt 0:05:02]} bxa4 {[%emt 0:00:09]} 23. Nc5 {[%emt 0:00:48]} Bc6 {[%emt 0:10:10]} 24. Ra1 {[%emt 0:09:29]} Kf8 {[%emt 0:05:46]} 25. c3 {[%emt 0:11:33]} Ke7 {[%emt 0:01:43]} 26. Kf2 {[%emt 0:01:09]} h6 {[%emt 0:05:00]} 27. Ba6 {[%emt 0:03:37]} Ra8 {[%emt 0:07:26]} 28. b5 {[%emt 0:02:04]} Bxb5 {[%emt 0:13:48]} 29. Bxb5 {[%emt 0:01:33]} Ra5 {[%emt 0:00:02]} 30. Rb1 {[%emt 0:11:42]} a3 {[%emt 0:00:03]} 31. Rb4 {[%emt 0:00:09]} a2 {[%emt 0:00:19]} 32. Nb3 {[%emt 0:00:06]} a1=Q {[%emt 0:02:50]} 33. Nxa1 {[%emt 0:00:04]} Rxa1 {[%emt 0:00:04]} 34. Bd3 {[%emt 0:01:46]} Ra2+ {[%emt 0:01:29]} 35. Ke3 {[%emt 0:02:16]} Na4 {[%emt 0:00:48]} 36. Rb7+ {[%emt 0:14:32]} Kf8 {[%emt 0:00:03]} 37. Rc7 {[%emt 0:00:16]} g5 {[%emt 0:00:59]} 38. fxg5 {[%emt 0:01:15]} hxg5 {[%emt 0:00:06]} 39. Be2 {[%emt 0:00:13]} Nb2 {[%emt 0:00:53]} 40. Kf3 {[%emt 0:01:57]} 1/2-1/2

[Event "German Bundesliga 2024-25"]
[Site "Germany"]
[Date "2024.11.30"]
[Round "3.8"]
[White "Tica, Sven"]
[Black "Reuker, Jari"]
[Result "1/2-1/2"]
[Annotator "TA"]
[ECO "A11"]
[WhiteElo "2428"]
[BlackElo "2408"]
[PlyCount "42"]
[EventDate "2024.09.27"]
[EventType "team-tourn"]
[EventCountry "GER"]
[SourceTitle "playchess.com"]
[Source "ChessBase"]
[SourceQuality "1"]
[WhiteTeam "Heimbach-Weis-Neuwied"]
[BlackTeam "Werder Bremen"]
[TimeControl "40/5400+30:1800+30"]

{[%evp 10,42,11,10,33,29,29,25,39,39,38,19,26,18,15,19,22,23,38,35,35,35,35,34,35,39,46,46,36,16,2,2,19,2,2]} 1. Nf3 {[%emt 0:00:05]} d5 {[%emt 0:00:05]} 2. g3 {[%emt 0:00:08]} Bg4 {[%emt 0:00:09]} 3. Bg2 {[%emt 0:00:11]} c6 {[%emt 0:00:10]} 4. O-O {[%emt 0:00:28]} Nd7 {[%emt 0:00:04]} 5. d3 {[%emt 0:00:43]} Ngf6 {[%emt 0:00:48]} 6. c4 {[%emt 0:03:07]} Bxf3 {[%emt 0:13:23]} 7. exf3 {[%emt 0:06:24]} e6 {[%emt 0:02:34]} 8. f4 {[%emt 0:02:42]} g6 {[%emt 0:13:07]} 9. b3 {[%emt 0:04:11]} h5 {[%emt 0:05:48]} 10. h4 {[%emt 0:13:23]} Bg7 {[%emt 0:01:59]} 11. Bb2 {[%emt 0:02:56]} O-O {[%emt 0:00:21]} 12. Nd2 {[%emt 0:02:49]} a5 {[%emt 0:01:58]} 13. Nf3 {[%emt 0:04:43]} b5 {[%emt 0:06:47]} 14. Rc1 {[%emt 0:10:24]} Qb6 {[%emt 0:05:31] [#]} 15. c5 $1 {[%emt 0:08:34]} Qc7 {[%emt 0:07:15]} (15... Nxc5 $2 {is the wrong capture.} 16. Bd4 $18) 16. a3 {[%emt 0:02:25]} Ng4 {[%emt 0:08:05][%cal Bf6g4,Bg4h6,Bh6f5][%mdl 32]} 17. Bxg7 {[%emt 0:03:56]} Kxg7 {[%emt 0:00:03]} 18. d4 {[%emt 0:00:48]} Ndf6 {[%emt 0:03:47]} 19. Ne5 {[%emt 0:02:42]} Nh6 {[%emt 0:01:05]} 20. Re1 {[%emt 0:01:30]} Nf5 {[%emt 0:00:47]} 21. Qd3 {[%emt 0:02:44]} Rad8 {[%emt 0:02:48]} 1/2-1/2

[Event "German Bundesliga 2024-25"]
[Site "Germany"]
[Date "2024.11.30"]
[Round "3.8"]
[White "Krstic, Petar"]
[Black "Kovacevic, Aleksandar"]
[Result "1/2-1/2"]
[Annotator "ChessBase"]
[ECO "D02"]
[WhiteElo "2270"]
[BlackElo "2447"]
[PlyCount "83"]
[EventDate "2024.09.27"]
[EventType "team-tourn"]
[EventCountry "GER"]
[SourceTitle "playchess.com"]
[Source "ChessBase"]
[SourceQuality "1"]
[WhiteTeam "Deggendorf"]
[BlackTeam "Kirchweyhe"]
[TimeControl "40/5400+30:1800+30"]

1. d4 {[%emt 0:00:05]} Nf6 {[%emt 0:00:29]} 2. Nf3 {[%emt 0:00:21]} d5 {[%emt 0:00:47]} 3. Bf4 {[%emt 0:00:36]} c5 {[%emt 0:00:45]} 4. e3 {[%emt 0:00:42]} Nc6 {[%emt 0:00:34]} 5. Nbd2 {[%emt 0:00:49]} cxd4 {[%emt 0:00:51]} 6. exd4 {[%emt 0:00:40]} Bf5 {[%emt 0:00:31]} 7. c3 {[%emt 0:01:51]} e6 {[%emt 0:01:03]} 8. Qb3 {[%emt 0:07:42]} Bd6 {[%emt 0:01:11]} 9. Bxd6 {[%emt 0:11:02]} Qxd6 {[%emt 0:00:08]} 10. Be2 {[%emt 0:00:56]} O-O {[%emt 0:00:15]} 11. O-O {[%emt 0:00:47]} Na5 {[%emt 0:00:51]} 12. Qa4 {[%emt 0:03:52]} Qc7 {[%emt 0:00:38]} 13. Rfc1 {[%emt 0:03:52]} a6 {[%emt 0:01:49]} 14. c4 {[%emt 0:04:24]} dxc4 {[%emt 0:03:24]} 15. Nxc4 {[%emt 0:01:02]} Nxc4 {[%emt 0:00:40]} 16. Qxc4 {[%emt 0:05:00]} Qb6 {[%emt 0:04:53]} 17. b4 {[%emt 0:01:34]} Nd5 {[%emt 0:03:31]} 18. a3 {[%emt 0:01:51]} Nf4 {[%emt 0:15:28]} 19. Bf1 {[%emt 0:00:31]} Be4 {[%emt 0:12:50]} 20. Ne5 {[%emt 0:08:10]} Qd8 {[%emt 0:02:14]} 21. g3 {[%emt 0:06:53]} Nd5 {[%emt 0:02:48]} 22. Qe2 {[%emt 0:03:50]} Nf6 {[%emt 0:00:34]} 23. Qe3 {[%emt 0:02:31]} Bd5 {[%emt 0:07:31]} 24. Bd3 {[%emt 0:04:36]} a5 {[%emt 0:05:24]} 25. Qe1 {[%emt 0:08:30]} g6 {[%emt 0:03:16]} 26. bxa5 {[%emt 0:08:03]} Rxa5 {[%emt 0:01:15]} 27. Qb4 {[%emt 0:01:34]} b6 {[%emt 0:12:32]} 28. Nc6 {[%emt 0:04:18]} Bxc6 {[%emt 0:00:21]} 29. Rxc6 {[%emt 0:00:08]} Nd5 {[%emt 0:00:09]} 30. Qb2 {[%emt 0:01:16]} Qf6 {[%emt 0:09:39]} 31. Be4 {[%emt 0:02:08]} Rd8 {[%emt 0:00:17]} 32. Rac1 {[%emt 0:04:53]} Kg7 {[%emt 0:03:50]} 33. R1c4 {[%emt 0:00:56]} Qe7 {[%emt 0:03:35]} 34. a4 {[%emt 0:00:41]} Qa7 {[%emt 0:00:58]} 35. Bxd5 {[%emt 0:00:59]} exd5 {[%emt 0:00:50]} 36. Rb4 {[%emt 0:00:41]} Rxa4 {[%emt 0:00:10]} 37. Rxa4 {[%emt 0:00:39]} Qxa4 {[%emt 0:00:01]} 38. Rxb6 {[%emt 0:00:13]} Qd1+ {[%emt 0:00:28]} 39. Kg2 {[%emt 0:00:06]} Re8 {[%emt 0:00:05]} 40. Qb5 {[%emt 0:01:16]} Qxd4 {[%emt 0:03:16]} 41. Qxe8 {[%emt 0:30:09]} Qxb6 {[%emt 0:30:04]} 42. Qe5+ {[%emt 0:00:06]} 1/2-1/2